[Event "Czech Extraliga 2023-24"]
[Site "Czech Republic"]
[Date "2024.04.06"]
[Round "10.3"]
[White "Cernousek, Lukas"]
[Black "Stalmach, Richard"]
[Result "0-1"]
[ECO "E63"]
[WhiteElo "2440"]
[BlackElo "2446"]
[Annotator "TA"]
[PlyCount "82"]
[EventDate "2023.10.14"]
[EventCountry "CZE"]
[SourceTitle "playchess.com"]
[Source "ChessBase"]
[SourceQuality "1"]
[TimeControl "40/5400+30:1800+30"]

{[%evp 16,82,29,31,47,43,41,44,47,44,56,43,43,38,49,27,66,48,57,43,55,53,63,52,51,54,54,12,14,16,18,24,30,13,33,0,0,0,0,0,0,0,0,0,0,-25,-32,-30,0,0,0,-1600,-1600,-805,-897,-1453,-728,-657,0,-1623,-1616,-1451,-685,-1641,-1651,-1547,-1441,-1372,-1372]} 1. d4 {[%emt 0:00:05]} Nf6 {[%emt 0:00:09]} 2. c4 {[%emt 0:00:12]} g6 {[%emt 0:00:15]} 3. g3 {[%emt 0:00:07]} Bg7 {[%emt 0:00:04]} 4. Bg2 {[%emt 0:00:05]} O-O {[%emt 0:00:17]} 5. Nc3 {[%emt 0:00:06]} d6 {[%emt 0:00:03]} 6. Nf3 {[%emt 0:00:12]} Nc6 {[%emt 0:00:04]} 7. d5 {[%emt 0:00:09]} Na5 {[%emt 0:00:03]} 8. b3 {[%emt 0:00:06]} a6 {[%emt 0:00:02]} 9. O-O {[%emt 0:21:25]} Rb8 {[%emt 0:00:54]} 10. Bg5 {[%emt 0:09:20]} c5 {[%emt 0:03:31]} 11. dxc6 $1 {[%emt 0:00:25]} Nxc6 {[%emt 0:00:52][%cal Ba5c6,Bc6e5,Be5d7,Bd7c5][%mdl 32] White is slightly better.} 12. Rc1 {[%emt 0:05:42]} h6 {[%emt 0:03:56]} 13. Bd2 {[%emt 0:01:38][%cal Bg5d2,Bd2c3,Bc3d4][%mdl 32]} Be6 {[%emt 0:24:42]} 14. Ne1 {[%emt 0:00:10][%cal Bf3e1,Be1c2,Bc2e3,Be3c4][%mdl 32]} Ne5 {[%emt 0:14:02]} 15. Nd5 {[%emt 0:05:59]} Kh7 {[%emt 0:14:52]} 16. Nc2 {[%emt 0:17:08]} Bxd5 {[%emt 0:13:36]} 17. cxd5 {[%emt 0:00:06]} Qb6 {[%emt 0:00:04]} 18. Bc3 {[%emt 0:15:00]} Rfc8 {[%emt 0:00:23]} 19. Qd2 {[%emt 0:00:35]} Ned7 {[%emt 0:07:04][%cal Of6e4]} 20. Bd4 {[%emt 0:08:18] This pair of bishops is nice.} Qd8 {[%emt 0:00:05]} 21. Ne3 {[%emt 0:00:32]} Rxc1 {[%emt 0:04:50]} 22. Rxc1 {[%emt 0:01:26]} Rc8 {[%emt 0:01:20]} 23. Rxc8 {[%emt 0:03:37]} Qxc8 {[%emt 0:00:02]} 24. Nc4 {[%emt 0:00:15]} Nc5 {[%emt 0:02:19]} 25. Qe3 {[%emt 0:09:12]} Ng4 {[%emt 0:04:54]} 26. Qf4 {[%emt 0:00:02]} Bxd4 {[%emt 0:00:32]} 27. Qxd4 {[%emt 0:00:01]} b5 {[%emt 0:01:33]} 28. Nb6 {[%emt 0:02:01]} Qf5 {[%emt 0:01:41]} 29. e4 {[%emt 0:00:03]} Qh5 {[%emt 0:00:23]} 30. h3 {[%emt 0:00:55]} Ne5 {[%emt 0:00:01] Strongly threatening ...Qe2.} 31. Nc8 {[%emt 0:00:35]} Qe2 {[%emt 0:01:45]} (31... Nf3+ {simplifies} 32. Bxf3 Qxf3 33. e5 Ne4) 32. Nxe7 {[%emt 0:00:16]} Ncd3 {[%emt 0:01:07] [#] ...Qe1+ would now be deadly.} 33. f4 $2 {[%emt 0:00:42][%mdl 8192]} (33. Nc6 $11) 33... Nf3+ $19 {[%emt 0:00:47]} 34. Bxf3 {[%emt 0:00:19]} Qxf3 {[%emt 0:00:01][%mdl 4096] Endgame. KQN-KQN} 35. Kh2 {[%emt 0:00:40]} Qe2+ {[%emt 0:00:45]} 36. Kg1 {[%emt 0:00:19]} Qf3 $40 {[%emt 0:00:04][%mdl 128] Black has some attack.} (36... Qd1+ $142 37. Kh2 Qe2+ (37... Qc2+ $2 38. Kg1 $19) 38. Kg1 Qf3 39. Nxg6 Qxg3+ (39... Kxg6 $2 40. Kh2 $19) (39... fxg6 40. Qa7+ Kh8 41. Qb8+ Kh7 42. Qc7+ Kg8 43. Qc8+ Kg7 44. Qd7+ Kg8 45. Qd8+ Kh7 46. Qe7+ Kg8 47. Qd8+ Kh7 48. Qe7+ Kg8 49. Qd8+ $11) 40. Kf1 Qf3+ (40... fxg6 41. Qa7+ Kg8 42. Qb8+ Kg7 43. Qc7+ Kh8 44. Qb8+ Kg7 45. Qc7+ Kf8 46. Qxd6+ Kf7 47. Qe6+ Kf8 48. Qc8+ Kg7 49. Qd7+ Kf8 50. Qd8+ Kf7 51. Qd7+ Kf8 52. Qd8+ Kf7 53. Qd7+ Kg8 54. Qc8+ Kf7 55. Qc7+ Kf6 56. Qd8+ Kf7 $11) (40... Kxg6 $2 41. f5+ Kh7 42. Ke2 $19) (40... Qxh3+ $2 41. Ke2 $19) 41. Kg1 Kxg6 (41... fxg6 42. Qa7+ Kh8 43. Qb8+ Kg7 44. Qc7+ Kf8 45. Qd8+ Kg7 46. Qe7+ Kg8 47. Qe8+ Kg7 48. Qe7+ Kg8 49. Qd8+ Kf7 50. Qd7+ Kg8 51. Qc8+ Kh7 52. Qd7+ Kg8 53. Qd8+ Kf7 54. Qd7+ Kg8 $11) 42. f5+ Kh7) 37. Kh2 {[%emt 0:00:05]} Ne1 {[%emt 0:00:18] Black is clearly winning.} 38. Qb2 {[%emt 0:00:56] Inhibits Qg2+.} Qxe4 {[%emt 0:01:26]} (38... Qf1 $142 39. g4 Nf3+ (39... Qxf4+ $2 40. Kg1 $19) 40. Kg3 Ng1 (40... Qd3 $2 41. Qf6 $19)) 39. Nc8 {[%emt 0:00:34]} Nf3+ {[%emt 0:00:01]} 40. Kg2 {[%emt 0:00:22]} Nd4+ {[%emt 0:01:08]} 41. Kg1 {[%emt 0:06:33]} Qe1+ {[%emt 0:02:31] Weighted Error Value: White=0.55/Black=0.64.  Loses game:     	White=1     	---        Inaccurate:     	White=2     	Black=2      OK:         	White=9     	Black=13     Best:        	White=2     	Black=1      Strong:       	White=1     	---} 0-1

[Event "Czech Extraliga 2023-24"]
[Site "Czech Republic"]
[Date "2024.04.06"]
[Round "10.3"]
[White "Hrbek, Stepan"]
[Black "Cyborowski, Lukasz"]
[Result "0-1"]
[ECO "D36"]
[WhiteElo "2407"]
[BlackElo "2482"]
[Annotator "TA"]
[PlyCount "68"]
[EventDate "2023.10.14"]
[EventCountry "CZE"]
[SourceTitle "playchess.com"]
[Source "ChessBase"]
[SourceQuality "1"]
[TimeControl "40/5400+30:1800+30"]

{[%evp 18,68,18,16,30,22,25,27,25,0,0,0,0,-2,0,0,0,6,0,0,8,-37,-22,-24,20,25,27,22,26,-60,-48,-27,-41,-50,-48,-198,-192,-220,-70,-74,-72,-166,-164,-449,-461,-468,-468,-652,-652,-826,-826,-826,-826]} 1. d4 {[%emt 0:00:08]} d5 {[%emt 0:00:27]} 2. c4 {[%emt 0:00:20]} e6 {[%emt 0:00:16]} 3. Nc3 {[%emt 0:00:33]} Nf6 {[%emt 0:00:30]} 4. cxd5 {[%emt 0:00:27]} exd5 {[%emt 0:00:42]} 5. Bg5 {[%emt 0:00:08]} c6 {[%emt 0:01:58]} 6. e3 {[%emt 0:00:35]} h6 {[%emt 0:02:03]} 7. Bh4 {[%emt 0:00:23]} Be7 {[%emt 0:00:55]} 8. Bd3 {[%emt 0:00:26]} O-O {[%emt 0:02:02]} 9. Qc2 {[%emt 0:00:35]} Re8 {[%emt 0:01:30]} 10. Nge2 {[%emt 0:00:40]} a5 {[%emt 0:04:18]} 11. O-O {[%emt 0:04:33]} Na6 {[%emt 0:01:05][%cal Bb8a6,Ba6c7,Bc7e6][%mdl 32]} 12. a3 {[%emt 0:02:02] Prevents Nb4.} Nc7 {[%emt 0:02:05] White has an edge.} 13. f3 {[%emt 0:07:10]} c5 {[%emt 0:08:21]} 14. b3 {[%emt 0:26:45]} Bd7 {[%emt 0:14:51]} 15. Qd2 {[%emt 0:13:23]} Ne6 {[%emt 0:12:47]} 16. dxc5 {[%emt 0:02:52]} Bxc5 {[%emt 0:03:17]} 17. Bxf6 {[%emt 0:03:40]} Qxf6 {[%emt 0:00:28]} 18. Nxd5 {[%emt 0:00:19]} Qe5 {[%emt 0:12:55][%cal Od7c6] [#] Hoping for ...Bc6!} 19. f4 {[%emt 0:07:08]} Qd6 {[%emt 0:01:00][%cal Oe6c7][%mdl 1024] ...Nc7! would now be deadly. Black has compensation.} (19... Qxd5 $2 20. Bh7+ Kxh7 21. Qxd5 $18) 20. b4 {[%emt 0:03:29]} Kf8 {[%emt 0:06:03]} (20... Qxd5 $2 21. Bh7+ (21. bxc5 $2 Bc6 $17) 21... Kxh7 22. Qxd5 $18) (20... Bc6 $5 21. Nf6+ gxf6 22. bxc5 Qd5 $11 (22... Nxc5 $2 23. Bh7+ Kxh7 24. Qxd6 $18)) 21. Bc4 {[%emt 0:02:25]} Ba7 {[%emt 0:02:03]} 22. Qd3 {[%emt 0:01:20]} (22. bxa5 Nc7 23. Kh1 Nxd5 24. Bxd5 Bxe3 $15 (24... Rxe3 25. Ng3 $11)) 22... Nc7 {[%emt 0:13:34] And now ...Nxd5 would win.} (22... Bc6 {simplifies} 23. Kh1 Bxd5 24. Qxd5 Qxd5 25. Bxd5 Rab8) 23. Nxc7 {[%emt 0:10:06]} (23. Nec3 $11 Nxd5 24. Nxd5) 23... Bxe3+ {[%emt 0:00:43]} 24. Kh1 {[%emt 0:07:41]} Qxc7 {[%emt 0:00:10]} 25. Bd5 {[%emt 0:03:23]} Qd6 {[%emt 0:07:28]} 26. Nc3 {[%emt 0:02:18]} ({Better is} 26. Rad1 $15) 26... axb4 $19 {[%emt 0:01:07]} 27. Ne4 {[%emt 0:00:33]} Bf5 {[%emt 0:00:40]} ({Black should try} 27... Qb6 $19 {Threatens to win with ...Bb5.} 28. Rfe1 (28. Bxf7 $2 Bb5 $19) 28... Bd4 (28... Bxf4 29. Bxf7 Bb5 30. Qb3 $11)) 28. Nxd6 $15 {[%emt 0:00:32]} Bxd3 {[%emt 0:00:04] This pair of bishops is nice.} 29. Rfd1 {[%emt 0:00:34]} (29. Rfe1 $17 Re7 30. axb4 Rxa1 31. Rxa1) 29... Red8 $19 {[%emt 0:01:01]} 30. Bxb7 $2 {[%emt 0:00:27]} (30. Rxd3 {was the only defense.} Rxd6 31. g3) 30... Rxa3 {[%emt 0:00:24] Black is clearly winning.} 31. Rxa3 {[%emt 0:00:31]} bxa3 {[%emt 0:00:04]} 32. Rxd3 {[%emt 0:00:26]} a2 {[%emt 0:00:45]} ({Stronger than} 32... Bxf4 33. Rxa3 Rxd6 (33... Bxd6 34. Ra2 $15) 34. Bf3 $11) 33. Rd1 {[%emt 0:00:28] [#]} Rxd6 $1 {[%emt 0:00:31][%mdl 512]} 34. Ra1 {[%emt 0:00:01]} Rd2 {[%emt 0:00:26] Weighted Error Value: White=0.49/Black=0.10 (very precise) .  Mistake:       	White=4     	Black=1      Inaccurate:     	White=3     	Black=1      OK:         	White=9     	Black=8      Best:        	White=1     	Black=5} (34... Bxf4 $2 35. g3 $19) 0-1

[Event "Czech Extraliga 2023-24"]
[Site "Czech Republic"]
[Date "2024.04.06"]
[Round "10.4"]
[White "Vykouk, Jan"]
[Black "Janik, Igor"]
[Result "0-1"]
[ECO "B11"]
[WhiteElo "2509"]
[BlackElo "2502"]
[Annotator "RC"]
[PlyCount "64"]
[EventDate "2023.10.14"]
[EventCountry "CZE"]
[SourceTitle "playchess.com"]
[Source "ChessBase"]
[SourceQuality "1"]
[TimeControl "40/5400+30:1800+30"]

1. e4 {[%emt 0:00:03]} c6 {[%emt 0:00:05]} 2. Nf3 {[%emt 0:00:33]} d5 {[%emt 0:00:06]} 3. Nc3 {[%emt 0:00:04]} Bg4 {[%emt 0:00:09]} 4. h3 {[%emt 0:00:06]} Bxf3 {[%emt 0:00:06]} 5. Qxf3 {[%emt 0:00:04]} e6 {[%emt 0:00:04]} 6. Be2 {[%emt 0:00:08]} Bc5 {[%emt 0:00:48]} 7. Qg3 {[%emt 0:00:08]} Bd4 {[%emt 0:03:43]} 8. d3 {[%emt 0:00:09]} Ne7 {[%emt 0:02:04]} 9. Bd1 {[%emt 0:01:52]} O-O {[%emt 0:04:37]} 10. Ne2 {[%emt 0:04:13]} Bb6 {[%emt 0:00:24]} 11. c3 {[%emt 0:02:15]} Bc7 {[%emt 0:09:27]} 12. f4 {[%emt 0:08:16]} Nd7 {[%emt 0:04:29]} 13. e5 {[%emt 0:08:37]} Nf5 {[%emt 0:06:23]} 14. Qf2 {[%emt 0:00:15]} f6 {[%emt 0:00:23]} 15. g4 {[%emt 0:00:31]} Ne7 {[%emt 0:00:07]} 16. exf6 {[%emt 0:04:20]} Nxf6 {[%emt 0:07:15]} 17. Qe3 {[%emt 0:02:49]} Ng6 {[%emt 0:06:02]} 18. O-O {[%emt 0:02:07]} e5 {[%emt 0:01:41]} 19. f5 {[%emt 0:01:14]} Bb6 {[%emt 0:01:20]} 20. d4 {[%emt 0:00:06]} exd4 {[%emt 0:00:14]} 21. Qe6+ {[%emt 0:14:36]} Kh8 {[%emt 0:00:27]} 22. fxg6 {[%emt 0:00:05]} dxc3+ {[%emt 0:03:15]} 23. Kh1 {[%emt 0:04:18]} Ne4 {[%emt 0:07:06]} 24. Rxf8+ {[%emt 0:14:28]} Qxf8 {[%emt 0:00:06]} 25. Qf7 {[%emt 0:00:49]} hxg6 {[%emt 0:11:27]} 26. Qxf8+ {[%emt 0:05:05]} Rxf8 {[%emt 0:00:14]} 27. Bf4 {[%emt 0:06:03]} g5 {[%emt 0:00:32]} 28. Bg3 {[%emt 0:00:06]} Rf1+ {[%emt 0:00:51]} 29. Kg2 {[%emt 0:00:08]} Nxg3 {[%emt 0:00:10]} 30. Nxc3 {[%emt 0:02:28]} Rg1+ {[%emt 0:00:17]} 31. Kf3 {[%emt 0:00:05]} Nf1 {[%emt 0:00:19]} 32. Ke2 {[%emt 0:05:13]} Ne3 {[%emt 0:00:32]} 0-1

[Event "Czech Extraliga 2023-24"]
[Site "Czech Republic"]
[Date "2024.04.06"]
[Round "10.4"]
[White "Cvek, Robert"]
[Black "Rasik, Vitezslav"]
[Result "1/2-1/2"]
[ECO "A15"]
[WhiteElo "2450"]
[BlackElo "2411"]
[Annotator "TA"]
[PlyCount "62"]
[EventDate "2023.10.14"]
[EventCountry "CZE"]
[SourceTitle "playchess.com"]
[Source "ChessBase"]
[SourceQuality "1"]
[TimeControl "40/5400+30:1800+30"]

{[%evp 17,62,0,11,-6,11,-2,33,21,50,54,55,32,62,60,67,76,69,42,48,35,54,40,31,12,15,-11,24,0,8,-22,-18,-40,-29,-41,-19,-12,-8,-46,0,0,0,0,0,0,0,0,0]} 1. Nf3 {[%emt 0:00:03]} g6 {[%emt 0:00:20]} 2. g3 {[%emt 0:00:39]} Bg7 {[%emt 0:00:38]} 3. Bg2 {[%emt 0:00:06]} Nf6 {[%emt 0:00:34]} 4. b3 {[%emt 0:00:33]} d6 {[%emt 0:02:30]} 5. Bb2 {[%emt 0:03:36]} e5 {[%emt 0:03:53]} 6. c4 {[%emt 0:00:06]} O-O {[%emt 0:01:34]} 7. O-O {[%emt 0:00:20]} Re8 {[%emt 0:02:16]} 8. d3 {[%emt 0:04:05]} Nbd7 {[%emt 0:10:55]} 9. Nc3 {[%emt 0:01:38]} c6 {[%emt 0:03:47]} 10. Nd2 {[%emt 0:02:31]} Nf8 {[%emt 0:07:15]} 11. Nde4 {[%emt 0:07:15]} Be6 {[%emt 0:01:23]} 12. Rc1 {[%emt 0:11:00] White is slightly better.} Re7 {[%emt 0:20:20]} 13. Nxf6+ {[%emt 0:03:05]} Bxf6 {[%emt 0:00:36] [#]} 14. d4 $1 {[%emt 0:00:30][%cal Bd3d4,Bd4d5][%mdl 32]} Bf5 {[%emt 0:06:25]} (14... exd4 15. Ne4) 15. d5 {[%emt 0:16:26]} c5 {[%emt 0:00:51]} 16. e4 {[%emt 0:00:27]} Bd7 {[%emt 0:01:50]} 17. a3 {[%emt 0:02:21]} Bg7 {[%emt 0:01:08]} 18. b4 {[%emt 0:05:24]} b6 {[%emt 0:02:58]} 19. Rb1 {[%emt 0:09:33]} f5 {[%emt 0:03:32]} 20. bxc5 {[%emt 0:00:07]} bxc5 {[%emt 0:00:22]} 21. Bc1 {[%emt 0:00:18] [#] Bg5 would now be deadly.} Rf7 {[%emt 0:01:38]} 22. Nb5 {[%emt 0:05:42]} Bc8 {[%emt 0:01:03]} 23. Bd2 {[%emt 0:02:45]} f4 {[%emt 0:05:07]} 24. f3 {[%emt 0:00:51]} h5 {[%emt 0:02:18]} 25. Qa4 {[%emt 0:00:52]} a6 {[%emt 0:02:06] And now ...Bd7 would win.} 26. Nc3 {[%emt 0:00:05]} Bd7 {[%emt 0:02:18] Repels Qc6} 27. Qc2 {[%emt 0:01:30]} fxg3 {[%emt 0:00:57]} (27... g5 $15 {was preferrable.}) 28. hxg3 $11 {[%emt 0:00:05] The position is equal.} h4 {[%emt 0:00:14]} 29. g4 {[%emt 0:06:00]} Bf6 {[%emt 0:00:28]} 30. Nd1 {[%emt 0:00:20]} Nh7 {[%emt 0:01:22]} 31. Nf2 {[%emt 0:00:18]} Ng5 {[%emt 0:01:16] Weighted Error Value: White=0.10 (very precise) /Black=0.13 (very precise) .  Mistake:       	---       	Black=1      Inaccurate:     	White=4     	Black=4      OK:         	White=9     	Black=8      Best:        	White=1     	---} 1/2-1/2

[Event "Czech Extraliga 2023-24"]
[Site "Czech Republic"]
[Date "2024.04.06"]
[Round "10.4"]
[White "Zwardon, Vojtech"]
[Black "Bernasek, Jan"]
[Result "1-0"]
[ECO "A30"]
[WhiteElo "2447"]
[BlackElo "2505"]
[Annotator "TA"]
[PlyCount "73"]
[EventDate "2023.10.14"]
[EventCountry "CZE"]
[SourceTitle "playchess.com"]
[Source "ChessBase"]
[SourceQuality "1"]
[TimeControl "40/5400+30:1800+30"]

{[%evp 10,73,12,0,8,11,32,20,33,2,26,0,21,11,32,28,34,39,50,48,39,41,47,38,81,39,60,51,59,62,62,58,62,52,64,50,60,6,84,81,87,92,244,239,240,268,261,272,259,242,323,247,587,564,947,702,1392,1335,1350,1271,5193,1535,29991,29992,29998,29999]} 1. c4 {[%emt 0:00:01]} Nf6 {[%emt 0:00:13]} 2. Nf3 {[%emt 0:00:02]} e6 {[%emt 0:00:49]} 3. b3 {[%emt 0:00:05]} b6 {[%emt 0:03:30]} 4. Bb2 {[%emt 0:00:17]} Bb7 {[%emt 0:00:16]} 5. e3 {[%emt 0:00:58]} c5 {[%emt 0:02:40]} 6. Be2 {[%emt 0:00:32]} Be7 {[%emt 0:01:34]} 7. O-O {[%emt 0:00:06]} d6 {[%emt 0:01:46]} 8. Nc3 {[%emt 0:00:20]} O-O {[%emt 0:00:21] The position is equal.} 9. Rc1 {[%emt 0:00:49]} Nbd7 {[%emt 0:00:37]} 10. Qc2 {[%emt 0:00:39]} a6 {[%emt 0:01:40]} 11. Rfd1 {[%emt 0:01:16]} Qc7 {[%emt 0:01:06]} 12. d4 {[%emt 0:00:34]} Rfe8 {[%emt 0:01:05]} 13. d5 {[%emt 0:06:02]} exd5 {[%emt 0:05:03]} 14. cxd5 {[%emt 0:02:14]} b5 {[%emt 0:00:53]} 15. e4 {[%emt 0:00:19]} Bf8 {[%emt 0:00:43]} 16. Bd3 $1 {[%emt 0:00:34]} Rac8 {[%emt 0:01:10]} 17. Nb1 {[%emt 0:10:02]} g6 {[%emt 0:04:51]} 18. Nbd2 {[%emt 0:02:04]} Bg7 {[%emt 0:03:37]} 19. a4 {[%emt 0:01:11]} Qb6 {[%emt 0:02:10]} 20. h3 {[%emt 0:00:13]} Nh5 {[%emt 0:13:50]} 21. Bxg7 {[%emt 0:01:12]} Nxg7 {[%emt 0:02:15]} 22. Bf1 {[%emt 0:03:54]} Rb8 {[%emt 0:06:44]} 23. Nb1 {[%emt 0:01:12]} (23. Qd3 $14) 23... Bc8 {[%emt 0:11:38]} (23... f5 $11) 24. Na3 $16 {[%emt 0:00:21]} Qa5 {[%emt 0:03:49]} 25. Ra1 {[%emt 0:08:17]} c4 $2 {[%emt 0:09:14] [#] Loses the game.} 26. axb5 {[%emt 0:02:13]} (26. bxc4 b4 27. Nb1 Nc5 $14) 26... cxb3 {[%emt 0:00:56]} 27. Qxb3 {[%emt 0:01:23]} Rxe4 {[%emt 0:04:14]} 28. Qc2 {[%emt 0:01:55]} Nc5 {[%emt 0:03:38]} 29. bxa6 {[%emt 0:00:48][%cal Oa3b5] Nb5! is the strong threat.} Qa4 {[%emt 0:07:01]} 30. Qc3 {[%emt 0:07:48]} Rb3 {[%emt 0:01:31] [#]} (30... Bxa6 {is tougher.} 31. Nc2 Rc4 32. Bxc4 (32. Rxa4 Rxc3 33. Rb4 Rxb4 $15) 32... Qxc4 33. Qxc4 Bxc4) 31. Qf6 $18 {[%emt 0:00:31]} Rxa3 {[%emt 0:01:28]} 32. Ng5 {[%emt 0:01:08]} Re8 {[%emt 0:01:08]} 33. Qxf7+ {[%emt 0:05:50]} Kh8 {[%emt 0:00:01]} 34. Rxa3 {[%emt 0:01:35]} Qxa3 {[%emt 0:00:04]} 35. Bb5 {[%emt 0:00:13]} (35. Re1 $142 Be6 36. Nxe6 (36. dxe6 h6 $18) 36... Ncxe6 37. Rxe6 (37. dxe6 Qa2 $18)) 35... Rg8 {[%emt 0:05:38]} 36. Qf6 {[%emt 0:00:29][%cal Rg5f7]} h6 {[%emt 0:00:40]} 37. Qxg6 {[%emt 0:00:02] Weighted Error Value: White=0.15 (very precise) /Black=0.67.  Mistake:       	White=1     	Black=3      Inaccurate:     	White=3     	Black=4      OK:         	White=11    	Black=7      Strong:       	White=1     	---} 1-0

[Event "Czech Extraliga 2023-24"]
[Site "Czech Republic"]
[Date "2024.04.06"]
[Round "10.4"]
[White "Vlasak, Lukas"]
[Black "Ponizil, Cyril"]
[Result "1/2-1/2"]
[ECO "E61"]
[WhiteElo "2434"]
[BlackElo "2467"]
[Annotator "RC"]
[PlyCount "83"]
[EventDate "2023.10.14"]
[EventCountry "CZE"]
[SourceTitle "playchess.com"]
[Source "ChessBase"]
[SourceQuality "1"]
[TimeControl "40/5400+30:1800+30"]

1. d4 {[%emt 0:00:03]} Nf6 {[%emt 0:00:04]} 2. c4 {[%emt 0:00:26]} g6 {[%emt 0:00:03]} 3. Nc3 {[%emt 0:00:31]} Bg7 {[%emt 0:00:04]} 4. Nf3 {[%emt 0:00:14]} O-O {[%emt 0:00:05]} 5. Bg5 {[%emt 0:00:12]} d6 {[%emt 0:01:35]} 6. e3 {[%emt 0:00:19]} Qe8 {[%emt 0:00:57]} 7. Be2 {[%emt 0:00:36]} e5 {[%emt 0:00:11]} 8. O-O {[%emt 0:00:40]} h6 {[%emt 0:00:30]} 9. Bh4 {[%emt 0:00:16]} Nc6 {[%emt 0:03:24]} 10. dxe5 {[%emt 0:13:13]} Nxe5 {[%emt 0:01:47]} 11. Qb3 {[%emt 0:05:18]} Ned7 {[%emt 0:03:06]} 12. Nd4 {[%emt 0:01:56]} Nc5 {[%emt 0:00:53]} 13. Qc2 {[%emt 0:00:14]} c6 {[%emt 0:08:39]} 14. Rad1 {[%emt 0:03:54]} a5 {[%emt 0:09:48]} 15. Bf3 {[%emt 0:12:29]} Nfd7 {[%emt 0:11:22]} 16. Bg3 {[%emt 0:08:44]} Ne5 {[%emt 0:00:24]} 17. Be2 {[%emt 0:00:07]} f5 {[%emt 0:04:09]} 18. Rfe1 {[%emt 0:01:40]} Be6 {[%emt 0:17:57]} 19. b3 {[%emt 0:04:18]} Rd8 {[%emt 0:03:15]} 20. a3 {[%emt 0:04:48]} Qf7 {[%emt 0:03:09]} 21. h3 {[%emt 0:04:28]} Bc8 {[%emt 0:04:20]} 22. Bf1 {[%emt 0:11:55]} Rfe8 {[%emt 0:01:26]} 23. Rd2 {[%emt 0:04:16]} g5 {[%emt 0:03:11]} 24. f3 {[%emt 0:01:45]} Ng6 {[%emt 0:01:36]} 25. Bf2 {[%emt 0:02:13]} f4 {[%emt 0:01:25]} 26. e4 {[%emt 0:00:41]} Qf6 {[%emt 0:02:50]} 27. Red1 {[%emt 0:02:01]} h5 {[%emt 0:02:57]} 28. b4 {[%emt 0:01:43]} axb4 {[%emt 0:00:04]} 29. axb4 {[%emt 0:00:10]} Ne6 {[%emt 0:00:50]} 30. Nxe6 {[%emt 0:00:56]} Bxe6 {[%emt 0:00:03]} 31. e5 {[%emt 0:01:27]} Nxe5 {[%emt 0:02:29]} 32. Ne4 {[%emt 0:01:16]} Qf5 {[%emt 0:01:26]} 33. Nxd6 {[%emt 0:03:06]} Qxc2 {[%emt 0:00:05]} 34. Rxc2 {[%emt 0:00:13]} Rf8 {[%emt 0:00:05]} 35. Rcd2 {[%emt 0:03:14]} g4 {[%emt 0:01:31]} 36. hxg4 {[%emt 0:03:06]} hxg4 {[%emt 0:00:03]} 37. Be2 {[%emt 0:00:34]} Rd7 {[%emt 0:03:03]} 38. fxg4 {[%emt 0:02:50]} Nxg4 {[%emt 0:01:26]} 39. Ne4 {[%emt 0:00:33]} Rxd2 {[%emt 0:01:40]} 40. Rxd2 {[%emt 0:00:09]} Nxf2 {[%emt 0:00:25]} 41. Kxf2 {[%emt 0:33:16]} Bf5 {[%emt 0:33:06]} 42. Bf3 {[%emt 0:00:00]} 1/2-1/2